fUST/lending_fUST_20240720
["ID","MTS","AMOUNT","RATE_DAILY","PERIOD"]
[332704570,1721457039127,-500.0,0.00016438,2]
[332704571,1721457039137,-813.1,0.00016438,2]
[332704572,1721457039147,-581.55,0.00016438,2]
[332704573,1721457039157,-500.0,0.00016438,2]
[332704574,1721457039167,-275.00656869,0.00016438,2]
[332704575,1721457039176,-500.0,0.00016438,2]
[332704576,1721457039185,-1075.76,0.00016438,2]
[332704577,1721457039196,-500.0,0.00016438,2]
[332704578,1721457039208,-500.0,0.00016438,2]
[332704579,1721457039218,-500.0,0.00016438,2]
[332704580,1721457039228,-519.19371319,0.00016438,2]
[332704581,1721457039237,-498.6861218,0.00016438,2]
[332704582,1721457039248,-500.0,0.00016438,2]
[332704583,1721457039257,-500.0,0.00016438,2]
[332704584,1721457039267,-500.0,0.00016438,2]
[332704585,1721457039276,-506.96479371,0.00016438,2]
[332704586,1721457039286,-500.0,0.00016438,2]
[332704587,1721457039295,-500.0,0.00016438,2]
[332704588,1721457039304,-636.18468786,0.00016438,2]
[332704589,1721457039313,-500.0,0.00016438,2]
[332704590,1721457039322,-500.0,0.00016438,2]
[332704591,1721457039331,-500.0,0.00016438,2]
[332704592,1721457039341,-617.04,0.00016438,2]
[332704593,1721457039350,-500.0,0.00016438,2]
[332704594,1721457039359,-500.0,0.00016438,2]
[332704595,1721457039368,-500.0,0.00016438,2]
[332704596,1721457039378,-1081.84,0.00016438,2]
[332704597,1721457039387,-501.87708454,0.00016438,2]
[332704598,1721457039396,-500.0,0.00016438,2]
[332704599,1721457039405,-500.0,0.00016438,2]
[332704600,1721457039415,-500.0,0.00016438,2]
[332704601,1721457039424,-305.21194369,0.00016438,2]
[332704602,1721457039433,-500.0,0.00016438,2]
[332704603,1721457039443,-500.0,0.00016438,2]
[332704604,1721457039452,-543.61,0.00016438,2]
[332704605,1721457039461,-503.62313423,0.00016438,2]
[332704606,1721457039471,-500.0,0.00016438,2]
[332704607,1721457039480,-500.0,0.00016438,2]
[332704608,1721457039489,-500.0,0.00016438,2]
[332704609,1721457039499,-556.42,0.00016438,2]
[332704610,1721457039508,-1231.39,0.00016438,2]
[332704611,1721457039517,-533.73,0.00016438,2]
[332704612,1721457039526,-578.19796633,0.00016438,2]
[332704613,1721457039536,-151.0,0.00016438,2]
[332704614,1721457039545,-207.7187867,0.00016438,2]
[332704615,1721457039554,-738.67,0.00016438,2]
[332704616,1721457039563,-500.0,0.00016438,2]
[332704617,1721457039572,-500.0,0.00016438,2]
[332704618,1721457039581,-500.0,0.00016438,2]
[332704619,1721457039590,-500.0,0.00016438,2]
[332704620,1721457039599,-355.97026371,0.00016438,2]
[332704621,1721457039609,-500.0,0.00016438,2]
[332704622,1721457039619,-211.08842914,0.00016438,2]
[332704623,1721457039629,-2631.69,0.00016438,2]
[332704624,1721457039638,-500.0,0.00016438,2]
[332704625,1721457039647,-558.5559199,0.00016438,2]
[332704626,1721457039657,-500.0,0.00016438,2]
[332704627,1721457039666,-500.0,0.00016438,2]
[332704628,1721457039675,-500.0,0.00016438,2]
[332704629,1721457039684,-500.0,0.00016438,2]
[332704630,1721457039694,-654.43,0.00016438,2]
[332704631,1721457039704,-500.0,0.00016438,2]
[332704632,1721457039713,-500.0,0.00016438,2]
[332704634,1721457039722,-500.0,0.00016438,2]
[332704636,1721457039731,-502.84607571,0.00016438,2]
[332704637,1721457039740,-500.0,0.00016438,2]
[332704638,1721457039749,-500.0,0.00016438,2]
[332704639,1721457039758,-500.0,0.00016438,2]
[332704640,1721457039767,-505.86,0.00016438,2]
[332704641,1721457039776,-550.14,0.00016438,2]
[332704642,1721457039785,-500.0,0.00016438,2]
[332704643,1721457039794,-504.60333215,0.00016438,2]
[332704644,1721457039803,-500.0,0.00016438,2]
[332704645,1721457039812,-500.0,0.00016438,2]
[332704646,1721457039821,-500.0,0.00016438,2]
[332704647,1721457039830,-500.0,0.00016438,2]
[332704649,1721457039839,-500.0,0.00016438,2]
[332704651,1721457039848,-500.0,0.00016438,2]
[332704652,1721457039857,-500.0,0.00016438,2]
[332704653,1721457039867,-506.77279529,0.00016438,2]
[332704654,1721457039877,-561.5,0.00016438,2]
[332704655,1721457039885,-500.0,0.00016438,2]
[332704656,1721457039894,-500.0,0.00016438,2]
[332704657,1721457039903,-500.0,0.00016438,2]
[332704658,1721457039912,-500.0,0.00016438,2]
[332704659,1721457039922,-502.25800946,0.00016438,2]
[332704660,1721457039931,-497.37484118,0.00016438,2]
[332704661,1721457039941,-500.0,0.00016438,2]
[332704662,1721457039951,-926.55,0.00016438,2]
[332704663,1721457039960,-500.0,0.00016438,2]
[332704664,1721457039969,-509.73926617,0.00016438,2]
[332704665,1721457039978,-1128.67,0.00016438,2]
[332704666,1721457039987,-513.99,0.00016438,2]
[332704667,1721457039997,-664.22,0.00016438,2]
[332704668,1721457040007,-500.0,0.00016438,2]
[332704669,1721457040016,-500.0,0.00016438,2]
[332704670,1721457040026,-500.0,0.00016438,2]
[332704671,1721457040036,-500.0,0.00016438,2]
[332704672,1721457040046,-1927.93,0.00016438,2]
[332704673,1721457040055,-451.13429978,0.00016438,2]
[332704674,1721457040063,-500.0,0.00016438,2]
[332704675,1721457040073,-500.0,0.00016438,2]
[332704676,1721457040082,-500.0,0.00016438,2]
[332704677,1721457040091,-505.39395541,0.00016438,2]
[332704678,1721457040100,-500.0,0.00016438,2]
[332704679,1721457040109,-500.0,0.00016438,2]
[332704680,1721457040119,-151.0,0.00016438,2]
[332704681,1721457040128,-151.0,0.00016438,2]
[332704682,1721457040137,-613.25,0.00016438,2]
[332704683,1721457040146,-153.82969,0.00016438,2]
[332704684,1721457040156,-2315.03,0.00016438,2]
[332704685,1721457040164,-502.29318717,0.00016438,2]
[332704686,1721457040173,-500.0,0.00016438,2]
[332704687,1721457040183,-200.79389776,0.00016438,2]
[332704688,1721457040192,-664.94,0.00016438,2]
[332704689,1721457040204,-1405.22,0.00016438,2]
[332704690,1721457040213,-500.0,0.00016438,2]
[332704691,1721457040222,-500.0,0.00016438,2]
[332704692,1721457040231,-668.81,0.00016438,2]
[332704693,1721457040241,-500.85141774,0.00016438,2]
[332704694,1721457040253,-500.0,0.00016438,2]
[332704695,1721457040267,-500.0,0.00016438,2]
[332704696,1721457040276,-500.0,0.00016438,2]
[332704701,1721457040489,-500.0,0.00016438,2]
[332704702,1721457040499,-1338.74,0.00016438,2]
[332704703,1721457040510,-811.72,0.00016438,2]
[332704704,1721457040519,-500.0,0.00016438,2]
[332704705,1721457040530,-500.0,0.00016438,2]
[332704706,1721457040539,-510.5776989,0.00016438,2]
[332704707,1721457040549,-1114.73,0.00016438,2]
[332704708,1721457040557,-641.35366962,0.00016438,2]
[332704709,1721457040566,-838.19,0.00016438,2]
[332704710,1721457040576,-500.0,0.00016438,2]
[332704711,1721457040586,-500.0,0.00016438,2]
[332704712,1721457040596,-500.0,0.00016438,2]
[332704713,1721457040605,-571.58,0.00016438,2]
[332704714,1721457040615,-2490.0,0.00016438,2]
[332704715,1721457040625,-539.30400409,0.00016438,2]
[332704716,1721457040635,-500.0,0.00016438,2]
[332704717,1721457040644,-979.0,0.00016438,2]
[332704718,1721457040654,-96.1048139,0.00016438,2]
[332704800,1721457592955,166.666666,0.00014795,2]
[332704801,1721457736945,-167.2779965,0.00015339,2]
[332704802,1721457736969,-1917.35985658,0.00015712,2]
[332704803,1721457944686,402.78617003,0.00015,2]
[332704804,1721457980990,346.15703621,9.999e-05,2]
[332704805,1721457987377,-157.23075393,0.00015708,2]
[332704806,1721457987398,-395.22400741,0.0001571,2]
[332704807,1721457987418,-756.65166615,0.0001571,2]
[332704808,1721458027138,-459.02948758,0.0001571,2]
[332704809,1721458027159,-536.67159897,0.0001571,2]
[332704810,1721458029158,-1309.10642749,0.00015708,2]
[332704811,1721458031095,-305.72799835,0.0001571,2]
[332704812,1721458031119,-300.0,0.00015951,2]
[332704813,1721458031143,-403.20520553,0.00015952,2]
[332704814,1721458031170,-525.48926449,0.00015952,2]
[332704815,1721458031203,-750.0,0.00015952,2]
[332704816,1721458036212,-1531.09713983,0.00015952,2]
[332704817,1721458054106,-1159.707564,0.00015952,2]
[332704818,1721458154017,166.666666,0.00014795,2]
[332704885,1721458238725,-3953.14874133,0.00016227,2]
[332704931,1721458244189,-747.24574286,0.00016227,2]
[332704932,1721458244199,-206.72314934,0.0001628,2]
[332704973,1721458319483,156.01097213,0.00019733,60]
[332704974,1721458359469,156.01097213,0.00019733,60]
[332704975,1721458419523,24850.0,0.00024,60]
[332704976,1721458440473,2.35403408,0.00023918,60]
[332704979,1721458574201,5332.17573036,0.000249,120]
[332704981,1721458653453,9999.0,0.000225,30]
[332704990,1721458709554,20000.0,0.00025,120]
[332704991,1721458746497,156.01097213,0.000225,30]
[332704997,1721458827319,10000.0,0.00025,120]
[332704998,1721458836266,10000.0,0.00025,120]
[332704999,1721458848502,156.01097213,0.000225,30]
[332705000,1721458908392,166.666666,0.00014795,2]
[332705002,1721458940509,-5148.6880069,0.00015174,2]
[332705003,1721458957981,156.01097213,0.00014795,30]
[332705004,1721459012487,156.01097213,0.00017933,30]
[332705006,1721459062486,156.01097213,0.00021737,30]
[332705007,1721459136068,243.32878953,9.999e-05,2]
[332705008,1721459163464,345.54113391,9.999e-05,2]
[332705009,1721459230132,-166.666668,0.00015371,2]
[332705010,1721459230155,-156.17743256,0.0001571,2]
[332705011,1721459230177,-346.15703621,0.00015744,2]
[332705012,1721459230212,-166.666668,0.00015772,2]
[332705013,1721459230241,-349.2322526,0.00015931,2]
[332705014,1721459230265,-484.01174747,0.00015959,2]
[332705015,1721459231156,-500.0,0.00015959,2]
[332705016,1721459239097,-10.86671468,0.00015959,2]
[332705017,1721459239119,-2792.84616614,0.00016057,2]
[332705018,1721459239149,-1120.64205357,0.00016057,2]
[332705019,1721459242093,-786.90626448,0.00016057,2]
[332705020,1721459242116,-538.17306105,0.00016095,2]
[332705021,1721459244097,-723.35891699,0.00016095,2]
[332705022,1721459263004,156.01097213,9.999e-05,30]
[332705023,1721459312748,269.34362336,0.00019509,30]
[332705033,1721459432711,-1161.38988049,0.00015851,2]
[332705034,1721459432723,-306.0,0.00016152,2]
[332705036,1721459432735,-166.666668,0.00016172,2]
[332705038,1721459432747,-300.0,0.00016199,2]
[332705039,1721459432756,-156.0,0.00016199,2]
[332705040,1721459432770,-154.3056047,0.000162,2]
[332705041,1721459432780,-306.0,0.000162,2]
[332705042,1721459432790,-306.0,0.000162,2]
[332705043,1721459432800,-293.8031846,0.000162,2]
[332705044,1721459432812,-153.0,0.000162,2]
[332705045,1721459432824,-206.5056545,0.000162,2]
[332705046,1721459432835,-153.0,0.000162,2]
[332705047,1721459432846,-4778.723145,0.0001628,2]
[332705158,1721459492661,166.666666,0.00014795,2]
[332705159,1721460023486,166.666666,0.00014795,2]
[332705160,1721460430135,-167.277994,0.00015369,2]
[332705161,1721460430158,-582.722006,0.00015708,2]
[332705162,1721460431100,-1392.74217313,0.00015708,2]
[332705163,1721460433081,-1450.60122878,0.00015708,2]
[332705164,1721460439138,-166.666668,0.00015708,2]
[332705165,1721460445089,-1380.60892631,0.00015708,2]
[332705166,1721460445111,-195.83024215,0.00015744,2]
[332705167,1721460445132,-2084.63785308,0.00015744,2]
[332705168,1721460445153,-53.77646404,0.00015851,2]
[332705169,1721460445181,-354.84490599,0.00015851,2]
[332705170,1721460445202,-300.0,0.00015904,2]
[332705171,1721460445223,-300.0,0.00015905,2]
[332705172,1721460445244,-148.43055989,0.00015906,2]
[332705180,1721460596197,166.666666,0.00014795,2]
[332705228,1721460637974,-286.809272,0.00015274,2]
[332705229,1721460637983,-151.0,0.000155,2]
[332705230,1721460637993,-109.50279636,0.00015851,2]
[332705300,1721460653383,386.04,0.00010959,2]
[332705301,1721460888145,666.02939598,0.00013283,2]
[332705302,1721461021798,1309.10642749,0.00015,2]
[332705303,1721461127578,166.666666,0.00014795,2]
[332705304,1721461376893,250.0,0.00014847,2]
[332705305,1721461477415,205.96995468,9.999e-05,2]
[332705306,1721461486790,459.02948758,9.999e-05,2]
[332705307,1721461524683,3966.29396832,0.0001212,2]
[332705308,1721461530489,403.20520553,0.0001212,2]
[332705309,1721461535243,459.02948758,0.0001212,2]
[332705310,1721461536077,842.39959732,0.0001212,2]
[332705311,1721461587246,459.02948758,0.00014691,2]
[332705312,1721461602058,452.96284597,9.999e-05,2]
[332705313,1721461625231,189.61619971,9.999e-05,2]
[332705314,1721461628170,-194.444446,0.00015017,2]
[332705315,1721461628192,-263.29031622,0.000151,2]
[332705316,1721461628214,-194.444446,0.00015409,2]
[332705317,1721461628235,-150.60173835,0.0001568,2]
[332705318,1721461628256,-978.31619326,0.00015781,2]
[332705319,1721461629150,-995.70108655,0.00015781,2]
[332705320,1721461634091,-1310.30930235,0.00015781,2]
[332705321,1721461640105,-1267.63734214,0.00015781,2]
[332705322,1721461640127,-194.444446,0.000158,2]
[332705323,1721461640147,-72.34068023,0.00015868,2]
[332705324,1721461649111,-276.89157237,0.00015868,2]
[332705325,1721461649136,-473.10842763,0.00015919,2]
[332705326,1721461650254,459.02948758,0.0001212,2]
[332705327,1721461658340,166.666666,0.00014795,2]
[332705383,1721461832118,-2886.0,0.00015493,2]
[332705385,1721461832127,-1161.38988049,0.00015851,2]
[332705386,1721461832136,-1327.9844838,0.000159,2]
[332705388,1721461832146,-185.64578061,0.00015919,2]
[332705390,1721461832155,-300.0,0.00015952,2]
[332705392,1721461832164,-300.0,0.00015952,2]
[332705394,1721461832174,-153.0,0.00016,2]
[332705396,1721461832183,-500.0,0.00016094,2]
[332705398,1721461832192,-500.0,0.00016094,2]
[332705399,1721461832202,-500.0,0.00016094,2]
[332705401,1721461832211,-333.7853274,0.00016094,2]
[332705402,1721461832220,-286.56430248,0.00016094,2]
[332705404,1721461832230,-153.0,0.000161,2]
[332705406,1721461832240,-1309.10642749,0.0001611,2]
[332705408,1721461832250,-1309.10642749,0.00016159,2]
[332705410,1721461832259,-11059.606036,0.000162,2]
[332705412,1721461832268,-2060.31828073,0.00016236,2]
[332705414,1721461832278,-2060.31828071,0.00016262,2]
[332705415,1721461832287,-6232.76656696,0.0001628,2]
[332705417,1721461832296,-7519.14402006,0.0001628,2]
[332705418,1721461832306,-165.065443,0.0001628,2]
[332705420,1721461832315,-165.065443,0.0001628,2]
[332705421,1721461832324,-682.330414,0.0001628,2]
[332705422,1721461832334,-682.330414,0.0001628,2]
[332705423,1721461832343,-682.330414,0.0001628,2]
[332705424,1721461832353,-682.330414,0.0001628,2]
[332705425,1721461832362,-682.330414,0.0001628,2]
[332705426,1721461832372,-682.330414,0.0001628,2]
[332705427,1721461832382,-2060.31828071,0.00016287,2]
[332705428,1721461832391,-682.330414,0.00016287,2]
[332705429,1721461832400,-682.330414,0.00016287,2]
[332705430,1721461832409,-2060.31828071,0.00016313,2]
[332705431,1721461832419,-3710.83089243,0.0001632,2]
[332705432,1721461832428,-985.203541,0.00016328,2]
[332705433,1721461832438,-985.203541,0.00016328,2]
[332705434,1721461832448,-165.065443,0.00016328,2]
[332705435,1721461832457,-165.065443,0.00016328,2]
[332705436,1721461832467,-682.330414,0.00016328,2]
[332705437,1721461832476,-682.330414,0.00016328,2]
[332705438,1721461832485,-682.330414,0.00016328,2]
[332705439,1721461832494,-682.330414,0.00016328,2]
[332705440,1721461832503,-1000.0,0.00016328,2]
[332705441,1721461832512,-1000.0,0.00016328,2]
[332705442,1721461832521,-1000.0,0.00016328,2]
[332705443,1721461832531,-1000.0,0.00016328,2]
[332705444,1721461832540,-1000.0,0.00016328,2]
[332705445,1721461832549,-1000.0,0.00016328,2]
[332705446,1721461832558,-1000.0,0.00016328,2]
[332705447,1721461832568,-1000.0,0.00016328,2]
[332705448,1721461832577,-1000.0,0.00016328,2]
[332705449,1721461832586,-1000.0,0.00016328,2]
[332705450,1721461832596,-1000.0,0.00016328,2]
[332705451,1721461832605,-1000.0,0.00016328,2]
[332705452,1721461832615,-1000.0,0.00016328,2]
[332705453,1721461832624,-1000.0,0.00016328,2]
[332705454,1721461832634,-1000.0,0.00016328,2]
[332705455,1721461832645,-1000.0,0.00016328,2]
[332705456,1721461832655,-1000.0,0.00016328,2]
[332705457,1721461832665,-1000.0,0.00016328,2]
[332705458,1721461832675,-1000.0,0.00016328,2]
[332705459,1721461832685,-1000.0,0.00016328,2]
[332705460,1721461832696,-1000.0,0.00016328,2]
[332705461,1721461832705,-1000.0,0.00016328,2]
[332705462,1721461832718,-1000.0,0.00016328,2]
[332705463,1721461832731,-374.36879,0.00016328,2]
[332705464,1721461832743,-682.330414,0.00016329,2]
[332705465,1721461832754,-682.330414,0.00016329,2]
[332705466,1721461832767,-985.203541,0.0001633,2]
[332705467,1721461832778,-985.203541,0.0001633,2]
[332705468,1721461832789,-165.065443,0.0001633,2]
[332705469,1721461832799,-165.065443,0.0001633,2]
[332705470,1721461832811,-165.065443,0.0001633,2]
[332705471,1721461832822,-165.065443,0.0001633,2]
[332705472,1721461832831,-682.330414,0.0001633,2]
[332705473,1721461832846,-682.330414,0.0001633,2]
[332705474,1721461832857,-682.330414,0.0001633,2]
[332705475,1721461832867,-682.330414,0.0001633,2]
[332705476,1721461832878,-682.330414,0.0001633,2]
[332705477,1721461832889,-682.330416,0.0001633,2]
[332705478,1721461832899,-985.203541,0.00016333,2]
[332705479,1721461832908,-985.203541,0.00016333,2]
[332705480,1721461832918,-165.065443,0.00016333,2]
[332705481,1721461832927,-165.065443,0.00016333,2]
[332705482,1721461832937,-165.065443,0.00016334,2]
[332705483,1721461832948,-165.065443,0.00016334,2]
[332705484,1721461832957,-985.203541,0.00016336,2]
[332705485,1721461832968,-985.203541,0.00016336,2]
[332705486,1721461832978,-165.065443,0.00016336,2]
[332705487,1721461832990,-165.065443,0.00016336,2]
[332705488,1721461833001,-165.065443,0.00016336,2]
[332705489,1721461833010,-165.065443,0.00016336,2]
[332705490,1721461833019,-985.203541,0.00016338,2]
[332705491,1721461833027,-985.203541,0.00016338,2]
[332705492,1721461833255,-985.203541,0.00016338,2]
[332705493,1721461833265,-985.203541,0.00016338,2]
[332705494,1721461833275,-985.203541,0.00016338,2]
[332705495,1721461833285,-985.203541,0.00016338,2]
[332705496,1721461833294,-985.203541,0.00016338,2]
[332705497,1721461833304,-985.203541,0.00016338,2]
[332705498,1721461833314,-985.203541,0.00016338,2]
[332705499,1721461833324,-985.203541,0.00016338,2]
[332705500,1721461833334,-985.203541,0.00016338,2]
[332705501,1721461833344,-985.203541,0.00016338,2]
[332705502,1721461833354,-165.065443,0.00016338,2]
[332705503,1721461833365,-165.065443,0.00016338,2]
[332705504,1721461833374,-165.065443,0.00016338,2]
[332705505,1721461833386,-165.065439,0.00016338,2]
[332705506,1721461833398,-2060.31828071,0.00016338,2]
[332705507,1721461833407,-981.15063012,0.00016338,2]
[332705508,1721461833419,-203.1353153,0.00016338,2]
[332705509,1721461833429,-3710.83089243,0.0001639,2]
[332705510,1721461833439,-28915.62574,0.000164,2]
[332705511,1721461833449,-19361.98410054,0.00016428,2]
[332705512,1721461833740,-1518.48172937,0.00016428,2]
[332705513,1721461833752,-255.0,0.00016428,2]
[332705514,1721461833769,-1099.01774581,0.00016428,2]
[332705552,1721461840176,-471.64870024,0.00015951,2]
[332705554,1721461840285,-7593.73457059,0.00015951,2]
[332705555,1721461840298,-1471.12326077,0.00015951,2]
[332705581,1721461843236,-1746.5,0.00015951,2]
[332705594,1721462201151,166.666666,0.00014795,2]
[332705595,1721462491587,200.0,0.00023747,120]
[332705596,1721462551521,200.0,0.00023525,120]
[332705597,1721462554049,784.76837982,0.000225,30]
[332705599,1721462611989,200.0,0.00023122,120]
[332705600,1721462626068,1060.50157818,0.00015,2]
[332705601,1721462768242,166.666666,0.00014795,2]
[332705603,1721462827167,-500.0,0.00015092,2]
[332705604,1721462833446,-1836.18979884,0.00015092,2]
[332705605,1721462842102,-1592.44352603,0.00015092,2]
[332705606,1721462844093,-723.35891699,0.00015092,2]
[332705607,1721462844122,-2803.71288082,0.00015092,2]
[332705608,1721462846105,-795.80597692,0.00015092,2]
[332705609,1721462846127,-175.806742,0.00015277,2]
[332705610,1721462846151,-149.02933465,0.00015542,2]
[332705611,1721462848283,346.15703621,9.999e-05,2]
[332705612,1721462850779,346.15703621,9.999e-05,2]
[332705613,1721462906776,465.82010582,0.0001212,2]
[332705616,1721463032202,-26.77740735,0.00015542,2]
[332705617,1721463032215,-1161.38988049,0.00015708,2]
[332705618,1721463032224,-1309.10642749,0.00015708,2]
[332705619,1721463032233,-307.83582326,0.00015712,2]
[332705620,1721463032243,-459.02948758,0.00015744,2]
[332705621,1721463032253,-175.806742,0.00015807,2]
[332705622,1721463032262,-5303.4494987,0.00015986,2]
[332705623,1721463032271,-175.806742,0.00016073,2]
[332705624,1721463032282,-300.0,0.00016099,2]
[332705625,1721463032291,-153.0,0.000161,2]
[332705626,1721463032301,-153.0,0.000161,2]
[332705627,1721463032311,-367.31035882,0.00016156,2]
[332705628,1721463032319,-153.0,0.000162,2]
[332705629,1721463032328,-1408.0,0.00016242,2]
[332705630,1721463032339,-154.71377951,0.00016309,2]
[332705631,1721463032349,-1255.69745045,0.00016338,2]
[332705632,1721463032362,-6718.75962895,0.00016418,2]
[332705633,1721463032373,-6718.75962895,0.00016418,2]
[332705634,1721463032383,-370.872586,0.00016427,2]
[332705635,1721463032394,-500.0,0.00016427,2]
[332705636,1721463032403,-235.30817645,0.00016427,2]
[332705637,1721463032412,-279.37158883,0.00016427,2]
[332705638,1721463032423,-151.0,0.00016428,2]
[332705639,1721463032435,-151.0,0.00016428,2]
[332705640,1721463032444,-151.0,0.00016428,2]
[332705641,1721463032454,-264.11254,0.00016428,2]
[332705642,1721463032465,-151.0,0.00016428,2]
[332705643,1721463032476,-94062.6348053,0.00016428,2]
[332705644,1721463032488,-26875.0385158,0.00016428,2]
[332705645,1721463032499,-502.55534474,0.00016438,2]
[332705646,1721463032511,-502.53402943,0.00016438,2]
[332705647,1721463032520,-500.0,0.00016438,2]
[332705648,1721463032532,-1065.85,0.00016438,2]
[332705649,1721463032542,-575.17339828,0.00016438,2]
[332705650,1721463032553,-500.0,0.00016438,2]
[332705651,1721463032564,-540.76795701,0.00016438,2]
[332705652,1721463032574,-500.0,0.00016438,2]
[332705653,1721463032584,-500.0,0.00016438,2]
[332705654,1721463032595,-500.0,0.00016438,2]
[332705655,1721463032606,-502.94625044,0.00016438,2]
[332705656,1721463032617,-513.71909363,0.00016438,2]
[332705657,1721463032629,-501.86602265,0.00016438,2]
[332705658,1721463032638,-849.59,0.00016438,2]
[332705659,1721463032647,-538.52645068,0.00016438,2]
[332705660,1721463032657,-640.47,0.00016438,2]
[332705661,1721463032667,-386.31562588,0.00016438,2]
[332705668,1721463038263,-154.71377951,0.00016159,2]
[332705669,1721463038274,-113.68437412,0.00016438,2]
[332705670,1721463038284,-287.80781033,0.00016438,2]
[332705744,1721463187865,459.02948758,9.999e-05,2]
[332705745,1721463238858,459.02948758,0.0001212,2]
[332705746,1721463294077,459.02948758,0.00014691,2]
[332705747,1721463306175,166.666666,0.00014795,2]
[332705765,1721463872019,156.74923757,0.00015,2]
[332705766,1721463945426,156.17743256,9.999e-05,2]
[332705767,1721463960669,1261.53197804,0.00015,2]
[332705768,1721464025135,-194.444445,0.00015269,2]
[332705769,1721464025159,-194.444445,0.00015667,2]
[332705770,1721464025180,-300.0,0.00015707,2]
[332705771,1721464025201,-300.0,0.00015707,2]
[332705772,1721464025222,-114.38657588,0.00015708,2]
[332705773,1721464029153,-166.666668,0.00015708,2]
[332705774,1721464030102,-750.0,0.00015708,2]
[332705775,1721464036103,-1545.74217313,0.00015708,2]
[332705776,1721464042091,-1700.60122878,0.00015708,2]
[332705777,1721464050148,-3714.85348558,0.00015708,2]
[332705778,1721464060053,166.666666,0.00014795,2]
[332705793,1721464161712,1298.27229438,0.00016413,30]
[332705850,1721464240684,-180.86122,0.00015334,2]
[332705851,1721464240694,-300.0,0.00015707,2]
[332705852,1721464240705,-23027.63808167,0.00015708,2]
[332705853,1721464240714,-978.07224945,0.00015879,2]
[332705854,1721464240726,-482.81796389,0.00015954,2]
[332705855,1721464240737,-555.84813451,0.00016038,2]
[332705856,1721464240748,-229.43037279,0.00016095,2]
[332705857,1721464240758,-180.86122,0.00016133,2]
[332705858,1721464240768,-153.0,0.00016164,2]
[332705859,1721464240778,-5303.4494987,0.000163,2]
[332705860,1721464240788,-367.31035882,0.00016309,2]
[332705861,1721464240798,-1237.00494227,0.00016313,3]
[332705862,1721464240810,-1130.12770536,0.00016338,2]
[332705863,1721464240820,-164.71572351,0.00016437,2]
[332705864,1721464240829,-545.56011218,0.00016437,2]
[332705865,1721464240839,-600.0,0.00016437,2]
[332705866,1721464240848,-378.51879383,0.00016437,2]
[332705867,1721464240858,-267.76977418,0.00016437,2]
[332705868,1721464240867,-414.96315568,0.00016437,2]
[332705869,1721464240877,-425.669,0.00016438,2]
[332705870,1721464240887,-7519.14402006,0.00016438,2]
[332705871,1721464240897,-500.0,0.00016438,2]
[332705872,1721464240908,-503.73404404,0.00016438,2]
[332705873,1721464240929,-500.0,0.00016438,2]
[332705874,1721464240940,-502.71174989,0.00016438,2]
[332705875,1721464240951,-500.0,0.00016438,2]
[332705876,1721464240962,-500.0,0.00016438,2]
[332705877,1721464240972,-500.0,0.00016438,2]
[332705878,1721464240983,-500.0,0.00016438,2]
[332705879,1721464240993,-502.75085437,0.00016438,2]
[332705880,1721464241002,-251.10593559,0.00016438,2]
[332705881,1721464241012,-500.0,0.00016438,2]
[332705882,1721464241022,-500.0,0.00016438,2]
[332705883,1721464241033,-500.0,0.00016438,2]
[332705884,1721464241043,-488.75582559,0.00016438,2]
[332705888,1721464243562,-11.24417441,0.00016438,2]
[332705889,1721464243572,-925.93,0.00016438,2]
[332705890,1721464243581,-500.0,0.00016438,2]